[Event "Late-Titled-Tuesday-Blitz-October-10-2023"]
[Site "Chess.com"]
[Date "2023.10.10"]
[Round "5"]
[White "GMJustin"]
[Black "Battever"]
[Result "0-1"]
[WhiteElo "2188"]
[BlackElo "2518"]
[TimeControl "180+1"]
[EndTime "14:52:10 PDT"]
[Termination "Battever won on time"]

1. e4 {[%clk 0:02:46.6]} 1... Nc6 {[%clk 0:02:57.1]} 2. Nf3 {[%clk 0:02:40.3]}
2... e5 {[%clk 0:02:57.3]} 3. Bb5 {[%clk 0:02:35.6]} 3... Nd4 {[%clk 0:02:48.1]}
4. Nxd4 {[%clk 0:02:21.5]} 4... exd4 {[%clk 0:02:49]} 5. Bc4 {[%clk 0:02:21.8]}
5... Bc5 {[%clk 0:02:48.2]} 6. Bxf7+ {[%clk 0:02:18.8]} 6... Kxf7 {[%clk
0:02:46.1]} 7. Qh5+ {[%clk 0:02:18.6]} 7... g6 {[%clk 0:02:42.6]} 8. Qxc5 {[%clk
0:02:18.6]} 8... Nf6 {[%clk 0:02:37.2]} 9. d3 {[%clk 0:02:03.2]} 9... d5 {[%clk
0:02:37.2]} 10. e5 {[%clk 0:01:41.8]} 10... Re8 {[%clk 0:02:37.1]} 11. Qxd4
{[%clk 0:01:25.4]} 11... c5 {[%clk 0:02:31.4]} 12. Qf4 {[%clk 0:01:02.7]} 12...
Qe7 {[%clk 0:02:24.2]} 13. O-O {[%clk 0:00:34.6]} 13... Qxe5 {[%clk 0:02:24.1]}
14. Qh4 {[%clk 0:00:33.9]} 14... Bf5 {[%clk 0:01:57.5]} 15. Nc3 {[%clk
0:00:32.2]} 15... d4 {[%clk 0:01:54.6]} 16. Bf4 {[%clk 0:00:25.4]} 16... Qe7
{[%clk 0:01:28.5]} 17. Nb5 {[%clk 0:00:24.8]} 17... Rad8 {[%clk 0:01:23.5]} 18.
h3 {[%clk 0:00:22.7]} 18... a6 {[%clk 0:01:18.6]} 19. Na3 {[%clk 0:00:10.5]}
19... b5 {[%clk 0:00:52.5]} 20. Rae1 {[%clk 0:00:09.8]} 20... Qxe1 {[%clk
0:00:47.8]} 21. Rxe1 {[%clk 0:00:10]} 21... Rxe1+ {[%clk 0:00:48.7]} 22. Kh2
{[%clk 0:00:10.4]} 22... h5 {[%clk 0:00:42.8]} 23. Bg5 {[%clk 0:00:09.3]} 23...
Rd6 {[%clk 0:00:41.7]} 24. Qf4 {[%clk 0:00:07.1]} 24... Ree6 {[%clk 0:00:33.8]}
25. g4 {[%clk 0:00:06.2]} 25... hxg4 {[%clk 0:00:31.3]} 26. hxg4 {[%clk
0:00:04.5]} 26... Nxg4+ {[%clk 0:00:29.8]} 27. Kg3 {[%clk 0:00:04.5]} 27... Nf6
{[%clk 0:00:25.4]} 28. Kg2 {[%clk 0:00:01.8]} 28... Nh5 {[%clk 0:00:24.7]} 29.
Qh4 {[%clk 0:00:01.8]} 29... Re2 {[%clk 0:00:22.5]} 30. Nb1 {[%clk 0:00:01.5]}
30... Bd7 {[%clk 0:00:17.4]} 0-1

[Event "Late-Titled-Tuesday-Blitz-October-10-2023"]
[Site "Chess.com"]
[Date "2023.10.10"]
[Round "5"]
[White "ElenGajger"]
[Black "PawnEatingZombie"]
[Result "0-1"]
[WhiteElo "2382"]
[BlackElo "2215"]
[TimeControl "180+1"]
[EndTime "14:52:12 PDT"]
[Termination "PawnEatingZombie won by checkmate"]

1. e4 {[%clk 0:03:00]} 1... e6 {[%clk 0:02:56.2]} 2. d4 {[%clk 0:02:59.7]} 2...
d5 {[%clk 0:02:56.2]} 3. Nd2 {[%clk 0:02:59.2]} 3... Be7 {[%clk 0:02:55]} 4.
Ngf3 {[%clk 0:02:58.8]} 4... Nf6 {[%clk 0:02:54.2]} 5. e5 {[%clk 0:02:58.8]}
5... Nfd7 {[%clk 0:02:54.3]} 6. Bd3 {[%clk 0:02:58.1]} 6... c5 {[%clk 0:02:54]}
7. c3 {[%clk 0:02:57.9]} 7... Nc6 {[%clk 0:02:54.4]} 8. O-O {[%clk 0:02:57.1]}
8... O-O {[%clk 0:02:53.4]} 9. a3 {[%clk 0:02:51.4]} 9... a5 {[%clk 0:02:53.5]}
10. Bb1 {[%clk 0:02:47.6]} 10... f6 {[%clk 0:02:52.2]} 11. exf6 {[%clk
0:02:45.7]} 11... Nxf6 {[%clk 0:02:52.1]} 12. Re1 {[%clk 0:02:44.9]} 12... cxd4
{[%clk 0:02:46.4]} 13. cxd4 {[%clk 0:02:43.9]} 13... Bd7 {[%clk 0:02:46.7]} 14.
h3 {[%clk 0:02:40.2]} 14... Qb6 {[%clk 0:02:29.5]} 15. Nf1 {[%clk 0:02:27]}
15... a4 {[%clk 0:02:07]} 16. Ng3 {[%clk 0:02:25.2]} 16... Na5 {[%clk
0:02:02.2]} 17. Ne5 {[%clk 0:02:19.3]} 17... Be8 {[%clk 0:02:00.6]} 18. Nd3
{[%clk 0:01:53.8]} 18... Nb3 {[%clk 0:01:57]} 19. Ra2 {[%clk 0:01:46.3]} 19...
Bg6 {[%clk 0:01:40.1]} 20. Bc2 {[%clk 0:01:36]} 20... Ne4 {[%clk 0:01:31.7]} 21.
Nxe4 {[%clk 0:01:29.2]} 21... dxe4 {[%clk 0:01:31.8]} 22. Ne5 {[%clk 0:01:25.9]}
22... Nxc1 {[%clk 0:01:13.2]} 23. Nxg6 {[%clk 0:01:07.7]} 23... hxg6 {[%clk
0:01:10.9]} 24. Qxc1 {[%clk 0:01:06]} 24... Qxd4 {[%clk 0:01:05.5]} 25. Bxe4
{[%clk 0:01:00.9]} 25... Rxf2 {[%clk 0:00:55.7]} 26. Kh1 {[%clk 0:01:00.5]}
26... Raf8 {[%clk 0:00:51]} 27. Bxb7 {[%clk 0:00:54.3]} 27... Bd6 {[%clk
0:00:47.1]} 28. Ra1 {[%clk 0:00:26]} 28... Bb8 {[%clk 0:00:43]} 29. Rxe6 {[%clk
0:00:20.6]} 29... Rxb2 {[%clk 0:00:18.6]} 30. Be4 {[%clk 0:00:19.6]} 30... Re2
{[%clk 0:00:13.1]} 31. Qc6 {[%clk 0:00:12.5]} 31... Qf2 {[%clk 0:00:08.6]} 32.
Rxg6 {[%clk 0:00:07.9]} 32... Re1+ {[%clk 0:00:08.5]} 33. Rxe1 {[%clk
0:00:06.7]} 33... Qxe1# {[%clk 0:00:08.3]} 0-1

[Event "Late-Titled-Tuesday-Blitz-October-10-2023"]
[Site "Chess.com"]
[Date "2023.10.10"]
[Round "5"]
[White "NowInChess"]
[Black "szachmistrz2500"]
[Result "0-1"]
[WhiteElo "2211"]
[BlackElo "2408"]
[TimeControl "180+1"]
[EndTime "14:52:13 PDT"]
[Termination "szachmistrz2500 won on time"]

1. e4 {[%clk 0:03:00.9]} 1... c5 {[%clk 0:02:59.5]} 2. d3 {[%clk 0:03:00.7]}
2... Nc6 {[%clk 0:02:57.3]} 3. g3 {[%clk 0:03:01.2]} 3... g6 {[%clk 0:02:57.4]}
4. Bg2 {[%clk 0:03:01.6]} 4... Bg7 {[%clk 0:02:57.5]} 5. f4 {[%clk 0:03:02.3]}
5... b5 {[%clk 0:02:55.2]} 6. a4 {[%clk 0:02:57.4]} 6... b4 {[%clk 0:02:54.9]}
7. Nf3 {[%clk 0:02:56.9]} 7... e6 {[%clk 0:02:53]} 8. e5 {[%clk 0:02:54.2]} 8...
Nge7 {[%clk 0:02:51.9]} 9. Nbd2 {[%clk 0:02:52.6]} 9... O-O {[%clk 0:02:43.4]}
10. Ne4 {[%clk 0:02:51.8]} 10... d5 {[%clk 0:02:23.7]} 11. Nxc5 {[%clk
0:02:27.4]} 11... a5 {[%clk 0:02:16]} 12. Be3 {[%clk 0:01:52.1]} 12... d4 {[%clk
0:02:13.4]} 13. Nxd4 {[%clk 0:01:41.9]} 13... Bd7 {[%clk 0:02:03.9]} 14. Nxd7
{[%clk 0:01:26.2]} 14... Qxd7 {[%clk 0:02:04]} 15. Nb5 {[%clk 0:01:18.6]} 15...
Nd5 {[%clk 0:02:00.8]} 16. Bf2 {[%clk 0:01:13.4]} 16... Rfd8 {[%clk 0:01:55.5]}
17. O-O {[%clk 0:01:09.9]} 17... f6 {[%clk 0:01:55]} 18. d4 {[%clk 0:01:04.7]}
18... f5 {[%clk 0:01:43.3]} 19. Qd3 {[%clk 0:00:47.7]} 19... Rab8 {[%clk
0:01:41.5]} 20. Rad1 {[%clk 0:00:44.8]} 20... Bf8 {[%clk 0:01:40.5]} 21. Kh1
{[%clk 0:00:42.5]} 21... Be7 {[%clk 0:01:40.1]} 22. b3 {[%clk 0:00:40.7]} 22...
Kh8 {[%clk 0:01:38.3]} 23. h3 {[%clk 0:00:39.9]} 23... g5 {[%clk 0:01:36.8]} 24.
Qf3 {[%clk 0:00:38.7]} 24... Rg8 {[%clk 0:01:35.7]} 25. Rg1 {[%clk 0:00:37.7]}
25... g4 {[%clk 0:01:35.1]} 26. hxg4 {[%clk 0:00:35.9]} 26... Rxg4 {[%clk
0:01:35.2]} 27. Bh3 {[%clk 0:00:31.7]} 27... Rg6 {[%clk 0:01:35]} 28. g4 {[%clk
0:00:30.4]} 28... fxg4 {[%clk 0:01:34]} 29. Rxg4 {[%clk 0:00:30.2]} 29... Rh6
{[%clk 0:01:11.5]} 30. Rdg1 {[%clk 0:00:24.3]} 30... Rf8 {[%clk 0:01:10.7]} 31.
Kh2 {[%clk 0:00:16.5]} 31... Qe8 {[%clk 0:01:07]} 32. Nd6 {[%clk 0:00:11.7]}
32... Bxd6 {[%clk 0:00:45.3]} 33. exd6 {[%clk 0:00:10.8]} 33... Qd7 {[%clk
0:00:44.9]} 34. Qe4 {[%clk 0:00:06.5]} 34... Qxd6 {[%clk 0:00:43.1]} 35. Kg2
{[%clk 0:00:04.1]} 35... Nxf4+ {[%clk 0:00:42.3]} 36. Rxf4 {[%clk 0:00:03.5]}
36... Rxf4 {[%clk 0:00:41.6]} 37. Qe3 {[%clk 0:00:02.5]} 37... Rg6+ {[%clk
0:00:41]} 38. Kf1 {[%clk 0:00:02.7]} 38... Rxg1+ {[%clk 0:00:40.9]} 39. Kxg1
{[%clk 0:00:02.7]} 39... Nxd4 {[%clk 0:00:40.1]} 40. Bg3 {[%clk 0:00:01.5]}
40... Rf3 {[%clk 0:00:31.2]} 0-1

[Event "Late-Titled-Tuesday-Blitz-October-10-2023"]
[Site "Chess.com"]
[Date "2023.10.10"]
[Round "5"]
[White "GoldenShare"]
[Black "pirulillo"]
[Result "1-0"]
[WhiteElo "2533"]
[BlackElo "2331"]
[TimeControl "180+1"]
[EndTime "14:52:15 PDT"]
[Termination "GoldenShare won by checkmate"]

1. e4 {[%clk 0:02:59.5]} 1... c5 {[%clk 0:02:59.3]} 2. Nc3 {[%clk 0:02:59]} 2...
e6 {[%clk 0:02:59]} 3. Nf3 {[%clk 0:02:59]} 3... Nc6 {[%clk 0:02:58.3]} 4. d4
{[%clk 0:02:59.9]} 4... cxd4 {[%clk 0:02:56.1]} 5. Nxd4 {[%clk 0:03:00.8]} 5...
Nf6 {[%clk 0:02:55.8]} 6. Nxc6 {[%clk 0:03:00.5]} 6... bxc6 {[%clk 0:02:54.3]}
7. e5 {[%clk 0:03:00.8]} 7... Nd5 {[%clk 0:02:52.1]} 8. Nxd5 {[%clk 0:03:01.2]}
8... cxd5 {[%clk 0:02:49.9]} 9. Bd3 {[%clk 0:03:02.1]} 9... d6 {[%clk
0:02:46.4]} 10. Bf4 {[%clk 0:03:02.6]} 10... Rb8 {[%clk 0:02:32.9]} 11. O-O
{[%clk 0:03:02]} 11... Be7 {[%clk 0:02:24.4]} 12. Qg4 {[%clk 0:02:58.7]} 12...
g6 {[%clk 0:02:22]} 13. Qg3 {[%clk 0:02:58.5]} 13... Rb6 {[%clk 0:02:17.3]} 14.
b3 {[%clk 0:02:19.4]} 14... O-O {[%clk 0:02:04.4]} 15. Rad1 {[%clk 0:02:17.7]}
15... Ba6 {[%clk 0:01:54.1]} 16. c4 {[%clk 0:02:14.3]} 16... dxc4 {[%clk
0:01:16.1]} 17. bxc4 {[%clk 0:02:15.2]} 17... d5 {[%clk 0:00:35.8]} 18. cxd5
{[%clk 0:01:59.7]} 18... Bxd3 {[%clk 0:00:35.8]} 19. Rxd3 {[%clk 0:01:51.6]}
19... exd5 {[%clk 0:00:35.6]} 20. Rfd1 {[%clk 0:01:52]} 20... Qd7 {[%clk
0:00:29.1]} 21. h4 {[%clk 0:01:52.2]} 21... h5 {[%clk 0:00:26.7]} 22. Be3 {[%clk
0:01:46.5]} 22... Ra6 {[%clk 0:00:22.8]} 23. Rxd5 {[%clk 0:01:45.5]} 23... Qe6
{[%clk 0:00:20]} 24. Bh6 {[%clk 0:01:41.1]} 24... Rc8 {[%clk 0:00:18.5]} 25. Bg5
{[%clk 0:01:41.2]} 25... Bxg5 {[%clk 0:00:17.5]} 26. Qxg5 {[%clk 0:01:40.7]}
26... Rxa2 {[%clk 0:00:16.3]} 27. Qh6 {[%clk 0:01:27.1]} 27... Ra1 {[%clk
0:00:16.3]} 28. Qe3 {[%clk 0:01:10.4]} 28... Qxd5 {[%clk 0:00:14.8]} 29. Rxa1
{[%clk 0:01:10.8]} 29... Re8 {[%clk 0:00:13.7]} 30. f4 {[%clk 0:01:09.1]} 30...
a5 {[%clk 0:00:13.2]} 31. Qc3 {[%clk 0:00:52.1]} 31... Rb8 {[%clk 0:00:09.5]}
32. Rxa5 {[%clk 0:00:44.2]} 32... Qe4 {[%clk 0:00:09.4]} 33. Ra1 {[%clk
0:00:33.9]} 33... Qxf4 {[%clk 0:00:09.3]} 34. Rf1 {[%clk 0:00:34.5]} 34... Qe4
{[%clk 0:00:07.8]} 35. Qg3 {[%clk 0:00:31.7]} 35... Rb2 {[%clk 0:00:06.6]} 36.
Qg5 {[%clk 0:00:30]} 36... Re2 {[%clk 0:00:05.4]} 37. Qd8+ {[%clk 0:00:27.8]}
37... Kg7 {[%clk 0:00:04.9]} 38. Qf6+ {[%clk 0:00:28]} 38... Kh6 {[%clk
0:00:01.6]} 39. Qh8# {[%clk 0:00:28]} 1-0

[Event "Late-Titled-Tuesday-Blitz-October-10-2023"]
[Site "Chess.com"]
[Date "2023.10.10"]
[Round "5"]
[White "temus_galaktionov"]
[Black "djano"]
[Result "1-0"]
[WhiteElo "2887"]
[BlackElo "2679"]
[TimeControl "180+1"]
[EndTime "14:52:17 PDT"]
[Termination "temus_galaktionov won on time"]

1. d4 {[%clk 0:03:00.2]} 1... d5 {[%clk 0:02:59.5]} 2. Nf3 {[%clk 0:03:00.2]}
2... c5 {[%clk 0:02:58.5]} 3. dxc5 {[%clk 0:03:00.2]} 3... e6 {[%clk 0:02:57.5]}
4. c4 {[%clk 0:03:00.4]} 4... Bxc5 {[%clk 0:02:57.4]} 5. cxd5 {[%clk 0:03:00.4]}
5... exd5 {[%clk 0:02:58]} 6. Nbd2 {[%clk 0:02:57.5]} 6... Nf6 {[%clk
0:02:55.1]} 7. Nb3 {[%clk 0:02:57.5]} 7... Bb6 {[%clk 0:02:52.3]} 8. Bg5 {[%clk
0:02:57.1]} 8... Bxf2+ {[%clk 0:02:37.8]} 9. Kxf2 {[%clk 0:02:55.2]} 9... Ne4+
{[%clk 0:02:38.1]} 10. Kg1 {[%clk 0:02:51.2]} 10... Nxg5 {[%clk 0:02:37.7]} 11.
e3 {[%clk 0:01:50.8]} 11... O-O {[%clk 0:02:30.9]} 12. h4 {[%clk 0:01:48.4]}
12... Ne4 {[%clk 0:02:22.3]} 13. Bd3 {[%clk 0:01:45.6]} 13... Nc6 {[%clk
0:02:15.5]} 14. Bxe4 {[%clk 0:01:28.5]} 14... dxe4 {[%clk 0:02:15.1]} 15. Qxd8
{[%clk 0:01:23.2]} 15... Rxd8 {[%clk 0:02:16]} 16. Ng5 {[%clk 0:01:23.8]} 16...
f5 {[%clk 0:02:07]} 17. Kf2 {[%clk 0:01:22.1]} 17... a5 {[%clk 0:02:04.9]} 18.
Rhd1 {[%clk 0:01:20.7]} 18... h6 {[%clk 0:01:52]} 19. Rxd8+ {[%clk 0:01:17.5]}
19... Nxd8 {[%clk 0:01:52.9]} 20. Rd1 {[%clk 0:01:12.4]} 20... Nc6 {[%clk
0:01:46.9]} 21. Nh3 {[%clk 0:01:11.4]} 21... Kf7 {[%clk 0:01:38.9]} 22. Nc5
{[%clk 0:01:02.3]} 22... Ke7 {[%clk 0:01:30.6]} 23. Nf4 {[%clk 0:01:00.7]} 23...
Ne5 {[%clk 0:01:10.6]} 24. Nd5+ {[%clk 0:00:43.9]} 24... Kf7 {[%clk 0:01:08]}
25. Nb6 {[%clk 0:00:42.9]} 25... Rb8 {[%clk 0:01:05.8]} 26. Rd8 {[%clk
0:00:42.6]} 26... Ke7 {[%clk 0:00:08.8]} 27. Rxc8 {[%clk 0:00:42.6]} 27... Rxc8
{[%clk 0:00:09.7]} 28. Nxc8+ {[%clk 0:00:43.5]} 28... Kd8 {[%clk 0:00:07.9]} 29.
Nd6 {[%clk 0:00:43.7]} 29... b6 {[%clk 0:00:07.7]} 30. Na4 {[%clk 0:00:43.2]}
30... Kc7 {[%clk 0:00:04.9]} 31. Nxf5 {[%clk 0:00:42.5]} 31... Nd3+ {[%clk
0:00:03.8]} 32. Ke2 {[%clk 0:00:38.8]} 32... b5 {[%clk 0:00:04.7]} 33. Nc3
{[%clk 0:00:38.8]} 33... b4 {[%clk 0:00:05.3]} 34. Nxe4 {[%clk 0:00:38.9]} 34...
Nxb2 {[%clk 0:00:05.2]} 35. Nxg7 {[%clk 0:00:39.2]} 35... a4 {[%clk 0:00:05.1]}
36. Nc5 {[%clk 0:00:35.3]} 36... Kc6 {[%clk 0:00:04.4]} 37. Nge6 {[%clk
0:00:32.3]} 37... b3 {[%clk 0:00:02.6]} 38. axb3 {[%clk 0:00:27.8]} 38... a3
{[%clk 0:00:02.9]} 39. b4 {[%clk 0:00:27.3]} 1-0

[Event "Late-Titled-Tuesday-Blitz-October-10-2023"]
[Site "Chess.com"]
[Date "2023.10.10"]
[Round "5"]
[White "Nick12772"]
[Black "Witty_Alien"]
[Result "0-1"]
[WhiteElo "2394"]
[BlackElo "2238"]
[TimeControl "180+1"]
[EndTime "14:52:17 PDT"]
[Termination "Witty_Alien won on time"]

1. Nf3 {[%clk 0:03:00.9]} 1... g5 {[%clk 0:02:59.5]} 2. Nxg5 {[%clk 0:02:58.1]}
2... e5 {[%clk 0:02:59.7]} 3. d4 {[%clk 0:02:57.3]} 3... Be7 {[%clk 0:02:58.4]}
4. Nf3 {[%clk 0:02:56.8]} 4... e4 {[%clk 0:02:58.7]} 5. Nfd2 {[%clk 0:02:57.4]}
5... d5 {[%clk 0:02:57.6]} 6. e3 {[%clk 0:02:57.8]} 6... Nf6 {[%clk 0:02:50.1]}
7. c4 {[%clk 0:02:57.6]} 7... c6 {[%clk 0:02:50.3]} 8. Nc3 {[%clk 0:02:58.2]}
8... Rg8 {[%clk 0:02:35.4]} 9. Qb3 {[%clk 0:02:56]} 9... Ng4 {[%clk 0:02:02.8]}
10. cxd5 {[%clk 0:02:49.7]} 10... Bh4 {[%clk 0:01:31.7]} 11. g3 {[%clk
0:02:17.8]} 11... Qf6 {[%clk 0:01:27.2]} 12. Ncxe4 {[%clk 0:02:09.2]} 12... Qd8
{[%clk 0:00:56.8]} 13. dxc6 {[%clk 0:01:51.2]} 13... Nxc6 {[%clk 0:00:53]} 14.
gxh4 {[%clk 0:01:50.6]} 14... Qxh4 {[%clk 0:00:50.4]} 15. Nf3 {[%clk 0:01:28.6]}
15... Qe7 {[%clk 0:00:49.9]} 16. Bd3 {[%clk 0:01:21.4]} 16... Be6 {[%clk
0:00:44.5]} 17. Qxb7 {[%clk 0:01:14.7]} 17... Qxb7 {[%clk 0:00:02.2]} 18. Nd6+
{[%clk 0:01:14.4]} 18... Ke7 {[%clk 0:00:02.6]} 19. Nxb7 {[%clk 0:01:15.3]}
19... Nb4 {[%clk 0:00:02.8]} 20. Be4 {[%clk 0:01:04.1]} 20... f5 {[%clk
0:00:02.6]} 21. a3 {[%clk 0:00:37.5]} 21... fxe4 {[%clk 0:00:02.4]} 22. axb4
{[%clk 0:00:34.1]} 22... exf3 {[%clk 0:00:02.9]} 23. Nc5 {[%clk 0:00:24.3]}
23... Bc4 {[%clk 0:00:03.1]} 24. Bd2 {[%clk 0:00:18.6]} 24... Nxh2 {[%clk
0:00:02.6]} 25. O-O-O {[%clk 0:00:11.3]} 25... Rg2 {[%clk 0:00:01.5]} 26. Be1
{[%clk 0:00:06.1]} 26... Rag8 {[%clk 0:00:01.7]} 27. Ne4 {[%clk 0:00:06]} 27...
Ng4 {[%clk 0:00:01.4]} 28. Nd2 {[%clk 0:00:05.5]} 28... Nxf2 {[%clk 0:00:01.5]}
29. Bxf2 {[%clk 0:00:02.7]} 29... Rxf2 {[%clk 0:00:02.4]} 30. Nxc4 {[%clk
0:00:03.3]} 30... Rc8 {[%clk 0:00:03]} 0-1

[Event "Late-Titled-Tuesday-Blitz-October-10-2023"]
[Site "Chess.com"]
[Date "2023.10.10"]
[Round "5"]
[White "Thormento16"]
[Black "Jarming"]
[Result "1/2-1/2"]
[WhiteElo "2297"]
[BlackElo "2760"]
[TimeControl "180+1"]
[EndTime "14:52:20 PDT"]
[Termination "Game drawn by repetition"]

1. d4 {[%clk 0:02:50.4]} 1... Nf6 {[%clk 0:02:59.7]} 2. Nc3 {[%clk 0:02:50.2]}
2... e6 {[%clk 0:02:57.8]} 3. e4 {[%clk 0:02:50]} 3... d5 {[%clk 0:02:57.1]} 4.
e5 {[%clk 0:02:50.6]} 4... Nfd7 {[%clk 0:02:57.7]} 5. f4 {[%clk 0:02:51.3]} 5...
c5 {[%clk 0:02:58.2]} 6. Nf3 {[%clk 0:02:52]} 6... Nc6 {[%clk 0:02:59.1]} 7. Be3
{[%clk 0:02:52.5]} 7... a6 {[%clk 0:02:59.7]} 8. Qd2 {[%clk 0:02:52.8]} 8... b5
{[%clk 0:03:00.2]} 9. Be2 {[%clk 0:02:53.1]} 9... Bb7 {[%clk 0:03:00.5]} 10. Nd1
{[%clk 0:02:51.9]} 10... cxd4 {[%clk 0:02:58.8]} 11. Nxd4 {[%clk 0:02:50.9]}
11... Nc5 {[%clk 0:02:56.8]} 12. O-O {[%clk 0:02:23.5]} 12... Be7 {[%clk
0:02:48.7]} 13. c3 {[%clk 0:02:20]} 13... Ne4 {[%clk 0:02:45.1]} 14. Qe1 {[%clk
0:02:18.5]} 14... O-O {[%clk 0:02:43.9]} 15. Nf2 {[%clk 0:02:16.8]} 15... Qc7
{[%clk 0:02:12.8]} 16. Nxe4 {[%clk 0:02:13.1]} 16... dxe4 {[%clk 0:02:13.7]} 17.
Nxc6 {[%clk 0:02:04.7]} 17... Bxc6 {[%clk 0:02:12.7]} 18. Qf2 {[%clk 0:02:05.1]}
18... a5 {[%clk 0:02:08.6]} 19. Rfd1 {[%clk 0:01:50.1]} 19... a4 {[%clk
0:02:04.3]} 20. a3 {[%clk 0:01:49.4]} 20... Qb7 {[%clk 0:01:59]} 21. Bf1 {[%clk
0:01:47.8]} 21... Bd5 {[%clk 0:01:59]} 22. Bd4 {[%clk 0:01:46.8]} 22... f6
{[%clk 0:01:57.1]} 23. exf6 {[%clk 0:01:45.9]} 23... Bxf6 {[%clk 0:01:58]} 24.
Bxf6 {[%clk 0:01:44.4]} 24... Rxf6 {[%clk 0:01:58.9]} 25. Qe3 {[%clk 0:01:40.8]}
25... Raf8 {[%clk 0:01:57.2]} 26. g3 {[%clk 0:01:41.1]} 26... h6 {[%clk
0:01:54]} 27. Bg2 {[%clk 0:01:40.8]} 27... e5 {[%clk 0:01:49.1]} 28. fxe5 {[%clk
0:01:36]} 28... Rf5 {[%clk 0:01:38.2]} 29. Rf1 {[%clk 0:01:25.6]} 29... Kh8
{[%clk 0:01:12.6]} 30. Rxf5 {[%clk 0:01:09.8]} 30... Rxf5 {[%clk 0:01:13.5]} 31.
Rf1 {[%clk 0:01:07.2]} 31... Rxe5 {[%clk 0:01:11.7]} 32. Qd4 {[%clk 0:01:06.8]}
32... Qe7 {[%clk 0:01:09.7]} 33. Qe3 {[%clk 0:01:04.8]} 33... Bc4 {[%clk
0:01:06.6]} 34. Rf4 {[%clk 0:01:04.3]} 34... Bd3 {[%clk 0:01:07.1]} 35. h4
{[%clk 0:01:00.3]} 35... Re6 {[%clk 0:01:03.5]} 36. Kh2 {[%clk 0:00:57.7]} 36...
Kg8 {[%clk 0:01:01.4]} 37. Bh3 {[%clk 0:00:49.8]} 37... Rf6 {[%clk 0:00:55.2]}
38. Bg2 {[%clk 0:00:49.9]} 38... Rxf4 {[%clk 0:00:55]} 39. gxf4 {[%clk
0:00:38.1]} 39... Qxh4+ {[%clk 0:00:54.3]} 40. Kg1 {[%clk 0:00:38.8]} 40... Qg4
{[%clk 0:00:50.9]} 41. Kf2 {[%clk 0:00:36.6]} 41... Qf5 {[%clk 0:00:50.4]} 42.
Kg3 {[%clk 0:00:36]} 42... g5 {[%clk 0:00:50]} 43. Bh3 {[%clk 0:00:28.1]} 43...
Qf6 {[%clk 0:00:46.5]} 44. f5 {[%clk 0:00:19.2]} 44... Qe5+ {[%clk 0:00:42.4]}
45. Kg2 {[%clk 0:00:16.5]} 45... Qf4 {[%clk 0:00:41.7]} 46. Qd4 {[%clk
0:00:13.5]} 46... g4 {[%clk 0:00:41.1]} 47. Qd8+ {[%clk 0:00:12.7]} 47... Kg7
{[%clk 0:00:41.5]} 48. Qe7+ {[%clk 0:00:11.4]} 48... Kg8 {[%clk 0:00:41.8]} 49.
Qe8+ {[%clk 0:00:11.4]} 49... Kg7 {[%clk 0:00:39.1]} 50. Qe7+ {[%clk 0:00:11.7]}
50... Kg8 {[%clk 0:00:39.6]} 51. Qe8+ {[%clk 0:00:10.8]} 51... Kg7 {[%clk
0:00:40.1]} 52. Qe7+ {[%clk 0:00:11]} 1/2-1/2

[Event "Late-Titled-Tuesday-Blitz-October-10-2023"]
[Site "Chess.com"]
[Date "2023.10.10"]
[Round "5"]
[White "vladoboch"]
[Black "SanchezKelvin"]
[Result "1-0"]
[WhiteElo "2469"]
[BlackElo "2599"]
[TimeControl "180+1"]
[EndTime "14:52:28 PDT"]
[Termination "vladoboch won on time"]

1. e4 {[%clk 0:03:00.9]} 1... e5 {[%clk 0:02:32.1]} 2. Nf3 {[%clk 0:02:46.9]}
2... Nc6 {[%clk 0:02:30.9]} 3. Bc4 {[%clk 0:02:33.8]} 3... Bc5 {[%clk
0:02:28.5]} 4. c3 {[%clk 0:02:31.7]} 4... Nf6 {[%clk 0:02:27.4]} 5. d3 {[%clk
0:02:30.9]} 5... d6 {[%clk 0:02:25.6]} 6. Nbd2 {[%clk 0:02:30.2]} 6... a5 {[%clk
0:02:25.7]} 7. Nf1 {[%clk 0:02:28.7]} 7... h6 {[%clk 0:02:23.2]} 8. Ng3 {[%clk
0:02:28.9]} 8... Be6 {[%clk 0:02:22.4]} 9. Bb5 {[%clk 0:02:27.6]} 9... Bg4
{[%clk 0:02:20.1]} 10. h3 {[%clk 0:02:27.5]} 10... Bd7 {[%clk 0:02:16.9]} 11.
O-O {[%clk 0:02:27.1]} 11... Ne7 {[%clk 0:02:13.9]} 12. Bxd7+ {[%clk 0:02:23.3]}
12... Nxd7 {[%clk 0:02:12.4]} 13. Nh4 {[%clk 0:02:24.2]} 13... g6 {[%clk
0:01:48.4]} 14. Kh1 {[%clk 0:02:10]} 14... Nf8 {[%clk 0:01:46.7]} 15. f4 {[%clk
0:02:08.7]} 15... Ne6 {[%clk 0:01:34.8]} 16. f5 {[%clk 0:02:00.3]} 16... Nf4
{[%clk 0:01:34.5]} 17. d4 {[%clk 0:01:38.2]} 17... Bb6 {[%clk 0:01:34.3]} 18.
fxg6 {[%clk 0:01:27]} 18... fxg6 {[%clk 0:01:30.2]} 19. Bxf4 {[%clk 0:01:16.8]}
19... exf4 {[%clk 0:01:29.5]} 20. Rxf4 {[%clk 0:01:17.4]} 20... Qd7 {[%clk
0:01:18.7]} 21. Qg4 {[%clk 0:01:12.7]} 21... g5 {[%clk 0:00:22.5]} 22. Qh5+
{[%clk 0:01:12]} 22... Kd8 {[%clk 0:00:22.8]} 23. Rf7 {[%clk 0:01:12.7]} 23...
gxh4 {[%clk 0:00:22.2]} 24. Nf5 {[%clk 0:01:13.4]} 24... Re8 {[%clk 0:00:21.8]}
25. Qxh4 {[%clk 0:01:12.1]} 25... Qe6 {[%clk 0:00:20.6]} 26. Rf6 {[%clk
0:00:41.3]} 26... Nxf5 {[%clk 0:00:18.1]} 27. exf5 {[%clk 0:00:36.1]} 27... Qe7
{[%clk 0:00:17.1]} 28. Qxh6 {[%clk 0:00:32]} 28... Kc8 {[%clk 0:00:15.9]} 29.
Re6 {[%clk 0:00:31.7]} 29... Qd8 {[%clk 0:00:15.5]} 30. Rae1 {[%clk 0:00:31]}
30... Rh8 {[%clk 0:00:14.3]} 31. Qg6 {[%clk 0:00:23.4]} 31... Kd7 {[%clk
0:00:12.5]} 32. d5 {[%clk 0:00:22.5]} 32... Qg8 {[%clk 0:00:09.9]} 33. Re7+
{[%clk 0:00:22]} 33... Kd8 {[%clk 0:00:10.2]} 34. Rg7 {[%clk 0:00:19.1]} 34...
Qf8 {[%clk 0:00:09.7]} 35. f6 {[%clk 0:00:15.1]} 35... Bf2 {[%clk 0:00:08.3]}
36. Ree7 {[%clk 0:00:15.2]} 36... Bh4 {[%clk 0:00:05.9]} 37. Rd7+ {[%clk
0:00:15.4]} 37... Kc8 {[%clk 0:00:06]} 38. Rxc7+ {[%clk 0:00:16]} 38... Kb8
{[%clk 0:00:05.2]} 39. Rxb7+ {[%clk 0:00:16.4]} 39... Kc8 {[%clk 0:00:05.7]} 40.
Rgc7+ {[%clk 0:00:16.8]} 40... Kd8 {[%clk 0:00:06.2]} 41. Rd7+ {[%clk 0:00:17]}
41... Kc8 {[%clk 0:00:05.9]} 42. Qe4 {[%clk 0:00:15.9]} 1-0